lending/lending_fUSD_20241120
["ID","MTS","AMOUNT","RATE_DAILY","PERIOD"]
[342717257,1732079443800,-500.0,0.00014109,2]
[342717258,1732079443809,-561.8,0.0001464,2]
[342717259,1732079443818,-200.0,0.00014677,2]
[342717260,1732079443827,-1250.88,0.00014774,2]
[342717261,1732079443837,-3000.0,0.000149,2]
[342717262,1732079443846,-3619.0,0.00015,2]
[342717263,1732079443856,-1006.55876,0.00015,2]
[342717264,1732079443865,-300.0,0.00015068,2]
[342717265,1732079443875,-1005.19,0.0001531,2]
[342717266,1732079443884,-156.06,0.00015342,2]
[342717267,1732079443893,-550.5,0.00015342,2]
[342717268,1732079443902,-266.13,0.00015342,2]
[342717269,1732079443912,-500.0,0.00015479,2]
[342717270,1732079443921,-150.0,0.00016105,2]
[342717271,1732079443931,-1093.0,0.00016105,2]
[342717272,1732079443941,-560.0,0.00016205,2]
[342717273,1732079443950,-1567.679,0.00016205,2]
[342717274,1732079443959,-1926.0,0.00016205,2]
[342717275,1732079443969,-3692.125,0.00016205,2]
[342717276,1732079443978,-814.0,0.00016205,2]
[342717277,1732079443988,-561.8,0.00016266,2]
[342717278,1732079443998,-160.63260832,0.00016438,2]
[342717279,1732079444008,-300.0,0.00016438,2]
[342717280,1732079444018,-500.0,0.00016849,2]
[342717281,1732079444027,-150.0,0.00016922,2]
[342717282,1732079444036,-150.0,0.00016922,2]
[342717283,1732079444046,-179.11465343,0.00016922,2]
[342717284,1732079444055,-150.0,0.00016922,2]
[342717285,1732079444064,-150.0,0.00016922,2]
[342717286,1732079444073,-150.0,0.00016922,2]
[342717287,1732079444083,-150.0,0.00016922,2]
[342717288,1732079444093,-247.07306121,0.00016922,2]
[342717289,1732079444105,-1250.88,0.00016959,2]
[342717290,1732079444114,-851.113808,0.00017,2]
[342717291,1732079444123,-3000.0,0.000174,2]
[342717292,1732079444133,-561.8,0.00017893,2]
[342717293,1732079444142,-330.0,0.00018,5]
[342717294,1732079444152,-300.0,0.00018,2]
[342717295,1732079444160,-500.0,0.00018,2]
[342717296,1732079444169,-500.0,0.00018218,2]
[342717297,1732079444180,-330.0,0.00019,2]
[342717298,1732079444189,-500.0,0.00019,2]
[342717299,1732079444199,-8868.26789897,0.0001905,2]
[342717300,1732079444208,-1093.0,0.00019105,2]
[342717301,1732079444218,-1250.88,0.00019143,2]
[342717302,1732079444228,-209.16,0.00019178,2]
[342717303,1732079444237,-200.67,0.000192,7]
[342717304,1732079444246,-561.8,0.0001952,2]
[342717305,1732079444256,-500.0,0.00019588,2]
[342717306,1732079444266,-3000.0,0.000199,2]
[342717307,1732079444275,-75133.82309066,0.0002,4]
[342717308,1732079444287,-9207.35999999,0.0002,4]
[342717309,1732079444299,-23928.698912,0.0002,4]
[342717310,1732079445846,-2801.07059239,0.0002,4]
[342717311,1732079445858,-435.75684105,0.0002,4]
[342717312,1732079445868,-1065.25818315,0.0002,4]
[342717313,1732079445908,-292.29160126,0.0002,4]
[342717314,1732079446174,-590.53656694,0.0002,4]
[342717315,1732079446184,-200.0,0.0002,7]
[342717316,1732079446194,-500.0,0.0002,2]
[342717317,1732079446208,-500.0,0.00020958,2]
[342717318,1732079446232,-41690.0,0.000213,2]
[342717319,1732079446248,-1250.88,0.00021328,2]
[342717320,1732079446260,-153.0,0.00021477,2]
[342717321,1732079446269,-153.0,0.00021477,2]
[342717322,1732079446280,-153.0,0.00021477,2]
[342717323,1732079446291,-153.0,0.00021477,2]
[342717324,1732079446302,-550.5,0.00021745,2]
[342717325,1732079446313,-266.13,0.00021745,2]
[342717326,1732079446324,-574.64,0.00021826,30]
[342717327,1732079446337,-186.22,0.00021918,2]
[342717328,1732079446346,-465.9,0.00021918,2]
[342717329,1732079446355,-764.05,0.00021951,2]
[342717330,1732079446365,-764.05,0.00021951,2]
[342717331,1732079446374,-433.13,0.00021951,2]
[342717332,1732079446384,-433.13,0.00021951,2]
[342717333,1732079446393,-764.22,0.00021951,2]
[342717334,1732079446402,-433.22,0.00021951,2]
[342717335,1732079446412,-764.05,0.00021951,2]
[342717336,1732079446422,-433.13,0.00021951,2]
[342717337,1732079446431,-1000.0,0.00022,7]
[342717338,1732079446441,-11557.0,0.00022,3]
[342717339,1732079446450,-500.0,0.00022328,2]
[342717340,1732079446459,-3000.0,0.000224,2]
[342717341,1732079446469,-11557.0,0.000226,5]
[342717342,1732079446478,-1000.0,0.000227,2]
[342717343,1732079446487,-433.13,0.00022903,2]
[342717344,1732079446497,-433.13,0.00022903,2]
[342717345,1732079446506,-255.3,0.00022903,2]
[342717346,1732079446515,-433.13,0.00022903,2]
[342717347,1732079446524,-433.13,0.00022903,2]
[342717348,1732079446533,-433.13,0.00022903,2]
[342717349,1732079446543,-433.13,0.00022903,2]
[342717350,1732079446552,-433.13,0.00022903,2]
[342717351,1732079446561,-433.13,0.00022903,2]
[342717352,1732079446570,-866.02,0.00022903,2]
[342717353,1732079446580,-433.13,0.00022903,2]
[342717354,1732079446589,-219.19,0.00022903,2]
[342717355,1732079446598,-433.13,0.0002291,2]
[342717356,1732079446608,-764.05,0.0002291,2]
[342717357,1732079446619,-433.13,0.0002291,2]
[342717358,1732079446629,-764.05,0.0002291,2]
[342717359,1732079446639,-764.05,0.0002291,2]
[342717360,1732079446648,-433.13,0.0002291,2]
[342717361,1732079446660,-764.05,0.0002291,2]
[342717362,1732079446672,-764.05,0.0002291,2]
[342717363,1732079446683,-156.06,0.00022945,2]
[342717364,1732079446694,-200.0,0.00023,2]
[342717365,1732079446704,-1250.88,0.00023513,2]
[342717366,1732079446714,-500.0,0.00023698,2]
[342717367,1732079446724,-550.64,0.00023837,2]
[342717368,1732079446733,-150.0,0.00023898,2]
[342717369,1732079446745,-150.0,0.00023906,2]
[342717370,1732079446754,-150.0,0.00023906,2]
[342717371,1732079446764,-150.0,0.00023911,2]
[342717372,1732079446773,-150.0,0.00023958,2]
[342717373,1732079446782,-150.0,0.00023991,2]
[342717374,1732079446791,-150.0,0.00023995,2]
[342717375,1732079446800,-53000.999999,0.00024,2]
[342717376,1732079446810,-900.2555861,0.00024,2]
[342717377,1732079446823,-3000.0,0.00024,2]
[342717378,1732079446832,-150.0,0.00024007,2]
[342717379,1732079446841,-150.0,0.00024038,2]
[342717380,1732079446850,-578.18816646,0.00024059,2]
[342717381,1732079446860,-150.0,0.0002406,2]
[342717382,1732079446869,-150.0,0.00024077,2]
[342717383,1732079446878,-150.0,0.00024097,2]
[342717384,1732079446888,-150.0,0.0002411,2]
[342717385,1732079446897,-150.0,0.00024117,2]
[342717386,1732079446906,-150.0,0.00024152,2]
[342717387,1732079447012,-150.0,0.00024161,2]
[342717388,1732079447023,-363.0,0.000242,2]
[342717389,1732079447032,-150.0,0.00024221,2]
[342717390,1732079447041,-150.0,0.00024337,2]
[342717391,1732079447051,-150.0,0.00024373,2]
[342717392,1732079447061,-574.64,0.0002441,30]
[342717393,1732079447070,-150.0,0.00024419,2]
[342717394,1732079447079,-229.0,0.000245,2]
[342717395,1732079447089,-150.0,0.00024561,2]
[342717396,1732079447098,-209.16,0.00024658,2]
[342717397,1732079447107,-150.54202296,0.00024768,2]
[342717398,1732079447116,-150.0,0.00024821,2]
[342717399,1732079447125,-150.27,0.00024821,2]
[342717400,1732079447134,-150.0,0.00024821,2]
[342717401,1732079447143,-150.0,0.00024821,2]
[342717402,1732079447153,-150.0,0.00024821,2]
[342717403,1732079447162,-150.39,0.00024828,2]
[342717404,1732079447171,-150.44,0.00024828,2]
[342717405,1732079447182,-150.0,0.00024828,2]
[342717406,1732079447191,-150.54,0.00024828,2]
[342717407,1732079447200,-150.0,0.00024828,2]
[342717408,1732079447209,-150.0,0.00024828,2]
[342717409,1732079447219,-150.0,0.00024828,2]
[342717410,1732079447228,-150.0,0.00024828,2]
[342717411,1732079447237,-150.0,0.00024828,2]
[342717412,1732079447246,-664.24,0.00024828,2]
[342717413,1732079447255,-150.0,0.00024828,2]
[342717414,1732079447265,-3000.0,0.00025,7]
[342717415,1732079447274,-3000.0,0.00025,14]
[342717416,1732079447285,-330.76693724,0.00025,10]
[342717417,1732079447298,-500.0,0.00025068,2]
[342717418,1732079447309,-280.0,0.000253,10]
[342717419,1732079447319,-220.49,0.0002565,2]
[342717420,1732079447328,-150.0,0.0002565,2]
[342717421,1732079447337,-154.28,0.0002565,2]
[342717422,1732079447348,-150.0,0.0002565,2]
[342717423,1732079447358,-150.0,0.0002565,2]
[342717424,1732079447368,-150.0,0.0002565,2]
[342717425,1732079447378,-150.0,0.0002565,2]
[342717426,1732079447387,-150.0,0.0002565,2]
[342717427,1732079447396,-150.0,0.0002565,2]
[342717428,1732079447406,-150.0,0.0002565,2]
[342717429,1732079447415,-150.0,0.0002565,2]
[342717430,1732079447425,-1250.88,0.00025698,2]
[342717431,1732079447436,-1710.0,0.00026,60]
[342717432,1732079447448,-1136.86503719,0.00026348,2]
[342717433,1732079447457,-150.0,0.00026371,2]
[342717434,1732079447466,-150.0,0.00026371,2]
[342717435,1732079447476,-150.0,0.00026375,2]
[342717436,1732079447485,-150.0,0.00026376,2]
[342717437,1732079447495,-150.0,0.00026385,2]
[342717438,1732079447504,-150.0,0.00026386,2]
[342717439,1732079447514,-150.0,0.00026388,2]
[342717440,1732079447524,-150.0,0.00026394,2]
[342717441,1732079447533,-150.0,0.00026398,2]
[342717442,1732079447543,-150.0,0.00026399,2]
[342717443,1732079447552,-150.0,0.00026405,2]
[342717444,1732079447562,-150.0,0.00026407,2]
[342717445,1732079447571,-150.0,0.0002641,2]
[342717446,1732079447581,-150.0,0.00026412,2]
[342717447,1732079447590,-150.0,0.00026415,2]
[342717448,1732079447599,-150.0,0.00026416,2]
[342717449,1732079447608,-150.0,0.0002642,2]
[342717450,1732079447618,-150.0,0.00026422,2]
[342717451,1732079447627,-150.0,0.00026426,2]
[342717452,1732079447636,-150.0,0.00026427,2]
[342717453,1732079447646,-150.0,0.00026428,2]
[342717454,1732079447655,-150.0,0.00026429,2]
[342717455,1732079447664,-150.0,0.00026431,2]
[342717456,1732079447677,-150.0,0.00026431,2]
[342717457,1732079447686,-150.0,0.00026435,2]
[342717458,1732079447700,-500.0,0.00026438,2]
[342717459,1732079447710,-150.0,0.0002644,2]
[342717460,1732079447720,-150.0,0.00026442,2]
[342717461,1732079447730,-150.0,0.00026446,2]
[342717462,1732079447739,-150.0,0.00026454,2]
[342717463,1732079447748,-150.0,0.00026458,2]
[342717464,1732079447758,-1002.5868883,0.0002646,2]
[342717465,1732079447768,-1148.64172936,0.0002646,2]
[342717466,1732079447777,-1032.7887343,0.0002646,2]
[342717467,1732079447787,-1566.80988849,0.0002646,2]
[342717468,1732079447797,-1122.92514898,0.0002646,2]
[342717469,1732079447806,-875.35123044,0.0002646,2]
[342717470,1732079447815,-150.0,0.00026462,2]
[342717471,1732079447824,-362.52,0.00026464,2]
[342717472,1732079447835,-362.56,0.00026464,2]
[342717473,1732079447845,-150.0,0.0002647,2]
[342717474,1732079447854,-150.0,0.00026471,2]
[342717475,1732079447863,-442.41,0.00026472,2]
[342717476,1732079447872,-362.52,0.00026472,2]
[342717477,1732079447882,-362.52,0.00026472,2]
[342717478,1732079447892,-362.52,0.00026472,2]
[342717479,1732079447901,-362.52,0.00026472,2]
[342717480,1732079447910,-362.52,0.00026472,2]
[342717481,1732079447920,-362.52,0.00026472,2]
[342717482,1732079447929,-362.52,0.00026472,2]
[342717483,1732079447939,-362.52,0.00026472,2]
[342717484,1732079447948,-362.52,0.00026472,2]
[342717485,1732079447957,-362.52,0.00026472,2]
[342717486,1732079447967,-362.52,0.00026472,2]
[342717487,1732079447976,-362.52,0.00026472,2]
[342717488,1732079447985,-150.0,0.00026473,2]
[342717489,1732079447995,-150.0,0.00026474,2]
[342717490,1732079448004,-150.0,0.00026481,2]
[342717491,1732079448013,-150.0,0.00026484,2]
[342717492,1732079448022,-150.0,0.00026489,2]
[342717493,1732079448031,-150.0,0.0002649,2]
[342717494,1732079448041,-150.0,0.00026493,2]
[342717495,1732079448050,-150.0,0.00026494,2]
[342717496,1732079448060,-150.0,0.00026495,2]
[342717497,1732079448070,-151.18566522,0.00026499,2]
[342717498,1732079448080,-150.0,0.00026509,2]
[342717499,1732079448089,-150.0,0.00026514,2]
[342717500,1732079448098,-150.0,0.00026518,2]
[342717501,1732079448108,-150.0,0.00026523,2]
[342717502,1732079448117,-150.0,0.00026532,2]
[342717503,1732079448126,-150.0,0.00026542,2]
[342717504,1732079448135,-150.0,0.00026546,2]
[342717505,1732079448144,-150.0,0.00026551,2]
[342717506,1732079448154,-150.0,0.00026551,2]
[342717507,1732079448164,-150.0,0.00026558,2]
[342717508,1732079448173,-150.0,0.00026558,2]
[342717509,1732079448183,-150.0,0.00026563,2]
[342717510,1732079448193,-150.0,0.00026564,2]
[342717511,1732079448202,-150.0,0.00026569,2]
[342717512,1732079448212,-150.0,0.00026574,2]
[342717513,1732079448222,-218.70225857,0.00026575,2]
[342717514,1732079448231,-150.0,0.00026575,2]
[342717515,1732079448241,-150.0,0.00026576,2]
[342717516,1732079448251,-150.0,0.00026576,2]
[342717517,1732079448260,-150.0,0.00026593,2]
[342717518,1732079448270,-150.0,0.00026595,2]
[342717519,1732079448279,-150.0,0.00026595,2]
[342717520,1732079448288,-150.0,0.00026602,2]
[342717521,1732079448297,-150.0,0.00026607,2]
[342717522,1732079448307,-150.0,0.00026607,2]
[342717523,1732079448316,-150.0,0.00026608,2]
[342717524,1732079448325,-150.0,0.0002661,2]
[342717525,1732079448335,-150.0,0.0002661,2]
[342717526,1732079448344,-150.0,0.0002661,2]
[342717527,1732079448354,-150.0,0.00026614,2]
[342717528,1732079448364,-150.0,0.00026614,2]
[342717529,1732079448373,-150.0,0.0002662,2]
[342717530,1732079448383,-150.0,0.00026622,2]
[342717531,1732079448393,-150.0,0.00026623,2]
[342717532,1732079448402,-150.0,0.00026623,2]
[342717533,1732079448412,-150.0,0.00026624,2]
[342717534,1732079448421,-150.0,0.00026624,2]
[342717535,1732079448431,-150.0,0.00026628,2]
[342717536,1732079448441,-150.0,0.00026634,2]
[342717537,1732079448450,-1500.0,0.00026634,2]
[342717538,1732079448460,-150.0,0.00026644,2]
[342717539,1732079448469,-1539.65937845,0.00026697,2]
[342717540,1732079448479,-2261.0,0.000267,2]
[342717541,1732079448488,-764.05,0.00026708,2]
[342717542,1732079448578,-764.05,0.00026708,2]
[342717543,1732079448587,-764.05,0.00026708,2]
[342717544,1732079448597,-764.05,0.00026708,2]
[342717545,1732079448606,-764.05,0.00026708,2]
[342717546,1732079448615,-778.72,0.00026708,2]
[342717547,1732079448625,-433.13,0.00026708,2]
[342717548,1732079448634,-764.05,0.00026708,2]
[342717549,1732079448643,-433.13,0.00026708,2]
[342717550,1732079448652,-764.05,0.00026708,2]
[342717551,1732079448661,-433.13,0.00026708,2]
[342717552,1732079448671,-433.13,0.00026708,2]
[342717553,1732079448681,-433.13,0.00026708,2]
[342717554,1732079448691,-526.4,0.00026708,2]
[342717555,1732079448700,-441.04,0.00026708,2]
[342717556,1732079448709,-433.13,0.00026708,2]
[342717557,1732079448718,-433.13,0.00026708,2]
[342717558,1732079448728,-866.26,0.00026708,2]
[342717559,1732079448737,-574.64,0.00026994,30]
[342717560,1732079448746,-1003.0,0.00027,60]
[342717561,1732079448756,-159.676276,0.00027,2]
[342717562,1732079448765,-2000.0,0.00027,2]
[342717563,1732079448774,-200.0,0.00027,2]
[342717564,1732079448783,-200.0,0.00027,2]
[342717565,1732079448792,-200.0,0.00027,2]
[342717566,1732079448801,-300.0,0.00027,2]
[342717567,1732079448810,-200.0,0.00027,2]
[342717568,1732079448820,-722.85,0.00027262,2]
[342717569,1732079448829,-703.3674772,0.0002727,2]
[342717570,1732079448838,-200.0,0.0002727,2]
[342717571,1732079448847,-200.0,0.0002727,2]
[342717572,1732079448857,-200.0,0.0002727,2]
[342717573,1732079448866,-200.0,0.0002727,2]
[342717574,1732079448875,-278.77725638,0.00027397,2]
[342717575,1732079448884,-4510.73,0.00027397,10]
[342717576,1732079448894,-3758.94,0.00027397,10]
[342717577,1732079448903,-3132.45,0.00027397,10]
[342717578,1732079448912,-2610.38,0.00027397,10]
[342717579,1732079448921,-200.0,0.00027543,2]
[342717580,1732079448931,-200.0,0.00027543,2]
[342717581,1732079448944,-200.0,0.00027543,2]
[342717582,1732079448953,-555.26275837,0.00027807,2]
[342717583,1732079448962,-200.0,0.00027818,2]
[342717584,1732079448971,-200.0,0.00027818,2]
[342717585,1732079448980,-200.0,0.00027818,2]
[342717586,1732079448989,-391.0,0.0002783,15]
[342717587,1732079448999,-1250.88,0.00027883,2]
[342717588,1732079449009,-208.458,0.0002803,2]
[342717589,1732079449018,-240.6705,0.0002803,2]
[342717590,1732079449028,-176.715,0.0002803,2]
[342717591,1732079449037,-200.0,0.00028096,2]
[342717592,1732079449046,-200.0,0.00028096,2]
[342717593,1732079449056,-200.0,0.00028096,2]
[342717594,1732079449065,-550.5,0.00028147,2]
[342717595,1732079449075,-266.13,0.00028147,2]
[342717596,1732079449085,-369.0,0.00028215,2]
[342717597,1732079449094,-150.0,0.000289,2]
[342717598,1732079449103,-150.0,0.000289,2]
[342717599,1732079449112,-161.96,0.000289,2]
[342717600,1732079449121,-150.17,0.000289,2]
[342717601,1732079449130,-433.37,0.000289,2]
[342717602,1732079449139,-150.0,0.000289,2]
[342717603,1732079449148,-150.0,0.000289,2]
[342717604,1732079449158,-150.0,0.000289,2]
[342717605,1732079449167,-433.37,0.000289,2]
[342717606,1732079449176,-150.0,0.000289,2]
[342717607,1732079449186,-433.37,0.000289,2]
[342717608,1732079449195,-150.0,0.000289,2]
[342717609,1732079449204,-150.0,0.000289,2]
[342717610,1732079449214,-291.87,0.000289,2]
[342717611,1732079449223,-433.37,0.000289,2]
[342717612,1732079449232,-300.0,0.000289,2]
[342717613,1732079449241,-150.0,0.000289,2]
[342717614,1732079449251,-150.0,0.000289,2]
[342717615,1732079449260,-433.37,0.000289,2]
[342717616,1732079449269,-300.0,0.000289,2]
[342717617,1732079449278,-150.0,0.000289,2]
[342717618,1732079449287,-150.0,0.000289,2]
[342717619,1732079449296,-150.0,0.000289,2]
[342717620,1732079449305,-436.26,0.000289,2]
[342717621,1732079449316,-150.0,0.000289,2]
[342717622,1732079449329,-150.0,0.000289,2]
[342717623,1732079449341,-433.37,0.000289,2]
[342717624,1732079449351,-150.0,0.000289,2]
[342717625,1732079449361,-151.05,0.000289,2]
[342717626,1732079449371,-150.0,0.000289,2]
[342717627,1732079449380,-150.0,0.000289,2]
[342717628,1732079449391,-433.37,0.000289,2]
[342717629,1732079449401,-151.64,0.000289,2]
[342717630,1732079449410,-150.0,0.000289,2]
[342717631,1732079449420,-150.0,0.000289,2]
[342717632,1732079449430,-150.0,0.000289,2]
[342717633,1732079449440,-150.0,0.000289,2]
[342717634,1732079449450,-150.0,0.000289,2]
[342717635,1732079449459,-150.0,0.000289,2]
[342717636,1732079449469,-150.0,0.000289,2]
[342717637,1732079449478,-150.0,0.000289,2]
[342717638,1732079449488,-150.0,0.000289,2]
[342717639,1732079449497,-150.0,0.000289,2]
[342717640,1732079449506,-150.0,0.000289,2]
[342717641,1732079449516,-150.0,0.000289,2]
[342717642,1732079449525,-150.0,0.000289,2]
[342717643,1732079449535,-150.0,0.000289,2]
[342717644,1732079449544,-150.0,0.000289,2]
[342717645,1732079449553,-453.0,0.00029485,2]
[342717646,1732079449563,-2261.10716172,0.000295,2]
[342717647,1732079449572,-574.64,0.00029578,30]
[342717648,1732079449581,-150.0,0.00029722,2]
[342717649,1732079449590,-150.0,0.00029722,2]
[342717650,1732079449599,-150.0,0.00029722,2]
[342717651,1732079449608,-725.04,0.00029722,2]
[342717652,1732079449618,-362.52,0.00029722,2]
[342717653,1732079449627,-362.52,0.00029722,2]
[342717654,1732079449636,-2647.04636414,0.0003,30]
[342717655,1732079449645,-358.88754161,0.0003,120]
[342717656,1732079449656,-1936.0,0.0003,30]
[342717657,1732079449666,-2118.60966345,0.0003,3]
[342717658,1732079449678,-1250.88,0.00030068,2]
[342717659,1732079449688,-209.16,0.00030137,2]
[342717660,1732079449698,-362.52,0.00030544,2]
[342717661,1732079449707,-362.52,0.00030544,2]
[342717662,1732079449717,-365.63,0.00030544,2]
[342717663,1732079449727,-362.52,0.00030544,2]
[342717664,1732079449737,-362.52,0.00030544,2]
[342717665,1732079449748,-362.52,0.00030544,2]
[342717666,1732079449757,-362.52,0.00030544,2]
[342717667,1732079449767,-362.52,0.00030544,2]
[342717668,1732079449776,-362.56,0.00030544,2]
[342717669,1732079449785,-156.06,0.00030548,2]
[342717670,1732079449794,-300.0,0.00030574,2]
[342717671,1732079449804,-548.0,0.00030613,30]
[342717672,1732079449814,-509.765554,0.00030758,120]
[342717673,1732079449823,-386.0,0.00030811,2]
[342717674,1732079449832,-10111.15554303,0.00030987,2]
[342717675,1732079449841,-284.04072646,0.00031506,120]
[342717676,1732079449850,-8500.0,0.0003186,6]
[342717677,1732079449859,-8500.0,0.00031869,6]
[342717678,1732079449868,-8500.0,0.00031878,6]
[342717679,1732079449877,-8500.0,0.00031878,6]
[342717680,1732079449886,-6663.94638411,0.00031878,6]
[342717681,1732079449897,-8500.0,0.00031878,6]
[342717682,1732079449906,-8500.0,0.00031878,6]
[342717683,1732079449915,-574.64,0.00032162,30]
[342717684,1732079449999,-1250.88,0.00032253,2]
[342717685,1732079450009,-500.0,0.00032272,120]
[342717686,1732079450021,-2835.610346,0.000328,30]
[342717687,1732079450030,-326.93,0.00032877,2]
[342717688,1732079450040,-150.0,0.00032877,2]
[342717689,1732079450049,-24820.94026376,0.00033,2]
[342717690,1732079450059,-3780.813795,0.00033,30]
[342717691,1732079450068,-9791.85788712,0.00033,2]
[342717692,1732079450077,-500.0,0.00033,30]
[342717693,1732079450086,-500.0,0.00033,30]
[342717694,1732079450095,-500.0,0.00033,30]
[342717695,1732079450103,-500.0,0.00033,30]
[342717696,1732079450112,-687.35481207,0.00033,30]
[342717697,1732079450122,-508.078566,0.00033,14]
[342717698,1732079450131,-0.01,0.0003315,120]
[342717699,1732079450140,-465.9,0.00033151,120]
[342717700,1732079450149,-379.51,0.00033284,2]
[342717701,1732079450158,-1556.09,0.000334,2]
[342717702,1732079450167,-896.44,0.000334,2]
[342717703,1732079450175,-1154.47247847,0.000335,2]
[342717704,1732079450190,-4726.017244,0.000335,30]
[342717705,1732079450201,-768.0,0.00033674,30]
[342717706,1732079450210,-150.0,0.00033742,2]
[342717707,1732079450220,-151.0,0.00033753,120]
[342717708,1732079450229,-500.0,0.00033786,120]
[342717709,1732079450239,-5671.220693,0.000338,30]
[342717710,1732079450249,-429.39,0.00033862,2]
[342717711,1732079450259,-55227.50773605,0.00034,120]
[342717712,1732079450269,-500.0,0.00034,120]
[342717713,1732079450278,-500.0,0.00034,30]
[342717714,1732079450288,-500.0,0.00034,30]
[342717715,1732079450297,-500.0,0.00034,30]
[342717716,1732079450307,-500.0,0.00034,30]
[342717717,1732079450316,-500.0,0.00034,30]
[342717718,1732079450326,-3877.66689593,0.000342,30]
[342717719,1732079450350,-277.77979186,0.000342,30]
[342717720,1732079450363,-785.42154461,0.000342,30]
[342717721,1732079450375,-641.61544197,0.000342,30]
[342717722,1732079450386,-88.73701863,0.000342,30]
[342717723,1732079450396,-1250.88,0.00034437,2]
[342717724,1732079450406,-813.32770856,0.00034482,6]
[342717725,1732079450416,-6616.424142,0.000345,30]
[342717726,1732079450426,-150.0,0.00034548,10]
[342717727,1732079450436,-550.5,0.00034549,2]
[342717728,1732079450445,-266.13,0.00034549,2]
[342717729,1732079450455,-282.685281,0.000346,120]
[342717730,1732079450465,-150.0,0.00034607,2]
[342717731,1732079450476,-872.83,0.00034633,2]
[342717732,1732079450485,-574.64,0.00034746,120]
[342717733,1732079450495,-2120.87561104,0.000348,30]
[342717734,1732079450507,-1971.07646217,0.000348,30]
[342717736,1732079886548,156.0,6.521e-05,2]
[342717737,1732079947084,188.0,6.521e-05,2]
[342717738,1732080006989,199.0,6.521e-05,2]
[342717739,1732080067155,192.0,6.521e-05,2]
[342717740,1732080128445,197.0,6.521e-05,2]
[342717741,1732080338032,1734.21640581,8e-05,2]
[342717742,1732080375680,199.56,0.00026,60]
[342717743,1732080437189,-300.0,0.00012667,2]
[342717744,1732080437213,-150.0,0.00012667,2]
[342717745,1732080437234,-490.13884123,0.00012668,2]
[342717746,1732080443595,-1469.53022807,0.00012668,2]
[342717747,1732080453094,-582.05697064,0.00012668,2]
[342717764,1732080631946,-3148.25040652,0.0001,2]
[342717765,1732080631958,-784.65653678,0.0001,2]
[342717766,1732080631968,-1976.11957799,0.0001,2]
[342717767,1732080631979,-977.13712285,0.0001,2]
[342717768,1732080631990,-692.9863151,0.0001,2]
[342717769,1732080632055,-1147130.40643197,0.0001,2]
[342717770,1732080632073,-450.44936041,0.0001,2]
[342717771,1732080632084,-1555.48465078,0.0001,2]
[342717772,1732080632095,-1386.10575894,0.0001,2]
[342717773,1732080632106,-920.1,0.0001,2]